Cogmind - Beta 10.2 @@@ ROGUE MODE // 2021.03.25 @ 22:46:59 Player: whisper Result: Destroyed by as-15279 with Assembled Blade Performance ------------- Evolutions (0) 0 Regions Visited (2) 400 Robots Destroyed (12) 60 Value Destroyed (293) 293 Prototype IDs (2) 40 Alien Tech Used (0) 0 Bonus (0) 0 TOTAL SCORE: 793 Bonus ------- None Cogmind --------- Core Integrity 0/250 Matter 212/300 Energy 100/100 System Corruption 0% Temperature Cool (0) Movement Walking (150) Ox1 Location -10/Mines Parts ------- > --- POWER (1) -------- (None) > --- PROPULSION (2) --- Aluminum Leg Aluminum Leg > --- UTILITY (2) ------ Large Storage Unit Large Storage Unit > --- WEAPON (2) ------- (None) > --- INVENTORY (16) --- Light Nuclear Core Light Treads Light Treads High-capacity Storage Unit Large Matter Pod (37) Light Armor Plating Light Armor Plating EM Pulse Gun Spread Laser Spread Laser Shotgun Shotgun Rocket Launcher Blade Trap Peak State ------------ > --- POWER ------------ Ion Engine > --- PROPULSION ------- Aluminum Leg Aluminum Leg > --- UTILITY ---------- Large Storage Unit Large Storage Unit > --- WEAPON ----------- Shotgun Shotgun > --- INVENTORY -------- Light Nuclear Core Light Treads Light Treads Aluminum Leg Aluminum Leg Wheel Heat Sink High-capacity Storage Unit Large Matter Pod Light Armor Plating Light Armor Plating Light Armor Plating EM Pulse Gun EM Pulse Gun Shotgun Shotgun [Rating: 11] Favorites ----------- Power Ion Engine Engine Ion Engine Propulsion Aluminum Leg Leg Aluminum Leg Utility Large Storage Unit Storage Large Storage Unit Protection Light Armor Plating Weapon EM Pulse Gun Energy Gun EM Pulse Gun Ballistic Gun Shotgun Build | -11 -10 -10 ------- Run | Scr Mat Min Slots Evolved . | . . . Power . | . . . Propulsion . | . . . Utility . | . . . Weapon . | . . . Parts Attached 19 | 6 11 2 Power 1 | 1 . . Engine 1 | 1 . . Core . | . . . Reactor . | . . . Propulsion 6 | 2 2 2 Treads . | . . . Leg 6 | 2 2 2 Wheel . | . . . Hover . | . . . Flight . | . . . Utility 5 | 1 4 . Device . | . . . Storage 3 | 1 2 . Processor . | . . . Hackware . | . . . Protection 2 | . 2 . Artifact . | . . . Weapon 7 | 2 5 . Energy Gun 5 | 2 3 . Energy Cannon . | . . . Ballistic Gun 2 | . 2 . Ballistic Cannon . | . . . Launcher . | . . . Special Weapon . | . . . Impact Weapon . | . . . Slashing Weapon . | . . . Piercing Weapon . | . . . Special Melee Weapon . | . . . Unidentified Prototypes . | . . . Parts Lost 7 | . 2 5 Power 1 | . . 1 Propulsion 2 | . . 2 Utility . | . . . Weapon 4 | . 2 2 Highest Loss Streak 5 | . 1 5 Average Slot Usage (%) 94 | . 94 97 Engine 13 | . 14 11 Leg 28 | . 28 28 Storage 19 | . 18 28 Protection 7 | . 9 . Energy Gun 15 | . 18 . Ballistic Gun 7 | . 4 27 Naked Turns . | . . . Heaviest Build 43 | 12 43 43 Greatest Support 20 | 20 20 20 Greatest Overweight (x) 2 | . 2 2 Average Overweight (x) 1 | . 1 1 Largest Inventory Capacity 16 | 6 16 16 Average Capacity 11 | 5 11 16 Most Carried 16 | 6 16 16 Average Carried 11 | 2 11 15 Final Capacity 16 | 6 16 16 Final Carried 16 | 6 16 14 Class Distribution -------------------- 100% | Mutant Dominant Class ---------------- Mutant | -10/Materials Mutant | -10/Mines Resources | -11 -10 -10 ----------- Run | Scr Mat Min Matter Collected 413 | 258 144 11 Remotely . | . . . Salvage Created 435 | . 401 34 Parts 27 | . 27 . Haulers Intercepted . | . . . Recyclers Shooed . | . . . Parts Field Recycled . | . . . Retrieved Matter . | . . . Parts Self-Destructed . | . . . Prevented . | . . . Kills | -11 -10 -10 ------- Run | Scr Mat Min Combat Hostiles Destroyed 13 | . 9 4 Guns 12 | . 8 4 AOE 1 | . 1 . Classes Destroyed 5 | . 4 1 Worker 1 | . 1 . Watcher 2 | . 2 . Swarmer 3 | . 3 . Grunt 6 | . 6 . Assembled 4 | . . 4 Best Kill Streak 4 | . 3 4 Combat Bots Only 4 | . 3 4 Max Kills in Single Turn 2 | . 1 2 Gunslinging 1 | . . 1 Exploded 1 | . 1 . Melee . | . . . Uniques/NPCs Destroyed . | . . . Combat | -11 -10 -10 -------- Run | Scr Mat Min Damage Taken 1344 | . 443 901 Core 255 | . 68 187 Absorbed by Shields . | . . . Core Remaining (%) 100 | 100 . . Volleys Fired 69 | . 56 13 Largest 2 | . 2 2 Hottest 90 | . 90 46 Shots Fired 108 | . 82 26 Gun 108 | . 82 26 Cannon . | . . . Launcher . | . . . Special . | . . . Kinetic 26 | . . 26 Thermal 34 | . 34 . Explosive . | . . . Electromagnetic 48 | . 48 . Robot Hit Streak 9 | . 9 6 Robot Miss Streak 5 | . 3 5 Penetration Max . | . . . Secondary Targets 1 | . . 1 Max Gunslinging Chain 1 | . . 1 Shots Hit Robots 66 | . 48 18 Core Hits 31 | . 20 11 Critical Hits . | . . . Critical Kills . | . . . Critical Parts Destroyed . | . . . Melee Attacks . | . . . Impact . | . . . Slashing . | . . . Piercing . | . . . Sneak Attacks . | . . . Combat Hostiles . | . . . Follow-up Attacks . | . . . Damage Inflicted 925 | . 652 273 Guns 886 | . 613 273 Cannons . | . . . Explosions 39 | . 39 . Melee . | . . . Ramming . | . . . Kinetic 273 | . . 273 Thermal 252 | . 252 . Explosive . | . . . Electromagnetic 400 | . 400 . Impact . | . . . Slashing . | . . . Piercing . | . . . Highest Corruption . | . . . Average Corruption . | . . . Corruption Purged . | . . . Overload Shots . | . . . Overflow Damage . | . . . Projectiles . | . . . Explosions . | . . . Melee . | . . . Knockbacks . | . . . Impact . | . . . Kinetic . | . . . Secondary . | . . . Self-Inflicted Damage 40 | . 40 . Shots 1 | . 1 . Rammed . | . . . Targets Rammed . | . . . Kicked . | . . . Crushed . | . . . Highest Temperature 312 | . 312 15 Average Temperature 60 | . 62 10 Received Heat Transfer 317 | . 177 140 Siege Activations . | . . . Robots Corrupted . | . . . Combat Hostiles . | . . . Parts Fried . | . . . Impact Corruptions . | . . . Robots Melted . | . . . Combat Hostiles . | . . . Parts Melted . | . . . Heat Transferred 573 | . 573 . Parts Sabotaged . | . . . Parts Stolen . | . . . Parts Stripped . | . . . Power Chain Reactions 1 | . 1 . Missiles Intercepted . | . . . Alert | -11 -10 -10 ------- Run | Scr Mat Min Peak Influence 232 | . 232 13 Initial 13 | . . 13 Average 50 | . 61 10 Maximum Alert Level 1 | . 1 . Low Security (%) 98 | 100 97 100 Level 1 1 | . 2 . Level 2 . | . . . Level 3 . | . . . Level 4 . | . . . Level 5 . | . . . High Security . | . . . Max Security . | . . . Squads Dispatched 1 | . 1 . Investigation . | . . . Extermination . | . . . Reinforcement 1 | . 1 . Assault . | . . . Garrison . | . . . Intercept . | . . . Construction Impeded . | . . . Haulers Reinforced . | . . . Stealth | -11 -10 -10 --------- Run | Scr Mat Min Distress Signals 3 | . 3 . Communications Jammed . | . . . Distress Signals . | . . . Times Spotted 41 | . 21 20 Peak Tracking Total 13 | . 4 13 Tactical Retreats 3 | . 3 . Traps | -11 -10 -10 ------- Run | Scr Mat Min Traps Triggered . | . . . Indirectly . | . . . Trap Hack Attempts . | . . . Triggered . | . . . Disarmed . | . . . Reprogrammed . | . . . Reused . | . . . Traps Extracted . | . . . Installed . | . . . Triggered . | . . . Machines | -11 -10 -10 ---------- Run | Scr Mat Min Machines Disabled . | . . . Max in Single Turn . | . . . Machines Sabotaged . | . . . Garrisons Compromised . | . . . Overloaded Fab Kills . | . . . Fab Network Shutdowns . | . . . Hacking | -11 -10 -10 --------- Run | Scr Mat Min Machines Accessed 5 | . 5 . Terminals 5 | . 5 . Fabricators . | . . . Repair Stations . | . . . Recycling Units . | . . . Scanalyzers . | . . . Garrison Access . | . . . Total Hacks 16 | . 16 . Successful 10 | . 10 . Failed 6 | . 6 . Catastrophic . | . . . Database Lockouts . | . . . Manual 9 | . 9 . Terminals 16 | . 16 . Fabricators . | . . . Repair Stations . | . . . Recycling Units . | . . . Scanalyzers . | . . . Garrison Access . | . . . Terminal Hacks 6 | . 6 . Robot Analysis 1 | . 1 . Prototype ID Bank 1 | . 1 . Terminal Index 1 | . 1 . Locate Traps 1 | . 1 . Hauler Manifests 1 | . 1 . Registered Components 1 | . 1 . Fabricator Hacks . | . . . Repair Station Hacks . | . . . Recycling Unit Hacks . | . . . Scanalyzer . | . . . Garrison Access Hacks . | . . . Unauthorized Hacks 4 | . 4 . Terminals 4 | . 4 . Track 1 | . 1 . Assimilate 1 | . 1 . Botnet 1 | . 1 . Operators 1 | . 1 . Fabricators . | . . . Repair Stations . | . . . Recycling Units . | . . . Scanalyzers . | . . . Garrison Access . | . . . Data Cores Recovered . | . . . Used . | . . . Hacking Detections 5 | . 5 . Full Trace Events . | . . . Feedback Events . | . . . Feedback Blocked . | . . . Robot Schematics Acquired . | . . . Robots Built . | . . . Matter . | . . . Time . | . . . Total Robot Build Rating . | . . . Part Schematics Acquired . | . . . Parts Built . | . . . Matter . | . . . Time . | . . . Total Part Build Rating . | . . . Parts Repaired . | . . . Time . | . . . Parts Recycled . | . . . Recycled Matter . | . . . Retrieved Matter . | . . . Retrieved Components . | . . . Parts Scanalyzed . | . . . Part Schematics Acquired . | . . . Parts Damaged . | . . . Bothacking | -11 -10 -10 ------------ Run | Scr Mat Min Used RIF Installer . | . . . Robots Hacked . | . . . Non-combat . | . . . Combat . | . . . Robot Hacks Applied . | . . . Relay Couplers Released . | . . . Robots Rewired . | . . . Allies Hacked . | . . . Hacks Repelled . | . . . Allies | -11 -10 -10 -------- Run | Scr Mat Min Total Allies 1 | . 1 . Largest Group 1 | . 1 1 Highest-Rated Group 10 | . 10 10 Highest-Rated Ally 10 | . 10 10 Total Orders . | . . . Ally Attacks . | . . . Total Damage . | . . . Kills . | . . . Allies Corrupted . | . . . Allies Melted . | . . . Intel | -11 -10 -10 ------- Run | Scr Mat Min Robot Analysis Total 1 | . 1 . Derelict Logs Recovered 1 | . . 1 Drone Launches . | . . . Drone Recoveries . | . . . Exploration | -11 -10 -10 ------------- Run | Scr Mat Min Turns Passed 1387 | 69 1116 202 Spaces Moved 722 | 48 585 89 Core 4 | 4 . . Treads . | . . . Legs 718 | 44 585 89 Wheels . | . . . Hover . | . . . Flight . | . . . Fastest Speed 50 | 50 120 150 Average Speed 153 | 114 153 176 Slowest Speed 180 | 120 180 180 Overloaded Moves . | . . . Propulsion Burnouts . | . . . Robots Hopped . | . . . Cave-ins Triggered . | . . . Exploration Rate (%) 44 | 4 92 36 Regions Visited 2 Branch Regions 1 Pre-discovered Areas . | . . . Known Exits Taken . | . . . Unknown Exits Taken 2 | 1 1 . Scrap Searched . | . . . Spaces Dug . | . . . Terrain Destroyed 3 | . 3 . Melee . | . . . Projectile . | . . . AOE 3 | . 3 . Terrain Rammed . | . . . Walls Destroyed . | . . . Machines Disabled . | . . . Actions | -11 -10 -10 --------- Run | Scr Mat Min Total 891 | 59 723 109 Wait 48 | . 47 1 Move 720 | 47 584 89 Hop . | . . . Pick Up 21 | 6 13 2 Fast Attach 12 | 6 6 . Attach 3 | . 1 2 Detach 3 | . 3 . Swap 4 | . 4 . Drop 11 | . 9 2 Fire 69 | . 56 13 Melee . | . . . Ram . | . . . Kick . | . . . Crush . | . . . Escape Stasis . | . . . Rewire . | . . . Trap . | . . . Miscellaneous . | . . . Route ------- -11/Scrapyard -10/Materials (discovered 5 exits: [*Mat x3] / [*Min x2]) -10/Mines History --------- Turn | Location | Event 2 | -11/Scrapyard | Discovered new exit (range 16) 70 | -11/Scrapyard | Entered Materials 257 | -10/Materials | Discovered new exit (range 12) 304 | -10/Materials | Build established: Mutant 478 | -10/Materials | Discovered new exit (range 16) 645 | -10/Materials | Discovered new exit (range 11) 846 | -10/Materials | Discovered new exit (range 12) 1032 | -10/Materials | Discovered new exit (range 15) 1186 | -10/Materials | Entered Mines 1186 | -10/Mines | Accompanied by 1 ally 1193 | -10/Mines | Received a Rocket Launcher from a helpful Derelict 1237 | -10/Mines | Found a hidden stash of uninstalled traps 1256 | -10/Mines | Learned 2 Materials zone layouts 1318 | -10/Mines | Assembled infested the area 1375 | -10/Mines | Core integrity fell below 50% 1383 | -10/Mines | Core integrity fell below 20% 1388 | -10/Mines | Destroyed by as-15279 with Assembled Blade Last Messages --------------- 01368_ as-19701 destroyed. 01368_ as-21803 destroyed. 01370_ Aluminum Leg destroyed. 01371_ Shotgun destroyed. 01371_ Aluminum Leg destroyed. 01371_ as-72967 destroyed. 01372_ as-04232 destroyed. 01372_ as-02544 destroyed. 01372_ as-03626 destroyed. 01373_ R-06 Scavenger collects Hover Unit. 01374_ as-80305 destroyed. 01375_ The unstable cave ceiling collapses. 01377_ as-59813 destroyed. 01379_ The unstable cave ceiling collapses. 01379_ R-06 Scavenger destroyed. 01381_ The unstable cave ceiling collapses. 01382_ Shotgun destroyed. 01382_ as-10509 destroyed. 01382_ as-84653 destroyed. 01386_ The unstable cave ceiling collapses. Map ----- +----------------------------------------------------+ | ######### = ##???????????? | | ! ###### ##??????????? | | [##????### " #####??????? | | # #####= ##???????##%" ##?????? | | # #???####?????????#" #?????? | | # #????????????????# #?????? | | # #????????????????## [ #?????? | | # #?????????????????## # #????? | | # #??????????????????# #? #????? | | # #?????????????????## ##? [ #????? | | ? ?????????????????## #######????? | | ? ?????????????????? ##???????? | | ? ??????????????????# =! ##??????? | | ? ?????????????????## =%= ##??????? | | ? ?????????????????# * #??????? | | ? ?????????????????# dd # #??????? | | ? ?????????????????## # #??????? | | ???????????????????# #??????? | | ???????????????????# ##?????? | | ???????????????????## #?????? | | ????????????????????# #??????? | | ????????????????????# #??????? | | ????????????????????# #??????? | | ????????????????????# #??????? | | ????????????????????# ###??????? | | ????????????????????# @ #????????? | | ????????????????????# a= #????????? | | ????????????????????#### a ##????????? | | ???????????????????????## #?????????? | | ????????????????????????# #?????????? | | ????????????????????????# #?????????? | | ????????????????????????# #?????????? | | ????????????????????????# #?????????? | | ????????????????????????# ?????????? | | ????????????????????????? ?????????? | | ????????????????????????? ?????????? | | ????????????????????????? ????????? | | ????????????????????????? #????????? | | ????????????????????????? ##????????? | | ????????????????????????? ??????????? | | ?????????????????????????< ??????????? | | ?????????????????????????????????????? | | ?????????????????????????????????????? | | ?????????????????????????????????????? | | ?????????????????????????????????????? | | ?????????????????????????????????????? | | ?????????????????????????????????????? | | ?????????????????????????????????????? | | ?????????????????????????????????????? | | ?????????????????????????????????????? | +----------------------------------------------------+ Best States ------------- Heat Dissipation 25 Energy Generation 10 Energy Capacity 250 Matter Stores 300 Matter Capacity 300 Sight Range 16 Terrain Scan Density 10 Armor Coverage 150 Evasion (%) 40 Item Schematics ----------------- None Robot Schematics ------------------ None Fabricated ------------ Nothing Alien Tech Used ----------------- None Achievements -------------- None Challenges ------------ None Game ------ Seed NullSkeletonInverter Manual? 0 Play Time 00:16:14 Cumulative 113.4 hours Start 2021.03.24 @ 16:26:48 End 2021.03.25 @ 22:46:59 Sessions 3 Manual Loads 0 Difficulty Rogue Special Mode None Game No. 40 Rogue 40 Adventurer 0 Explorer 0 Win Type - Total 3 Types 2/0/0/1/0/0/0/0/0 Lore% 58 Gallery% 67 Achievement% 51 Wizard Run 0 Options --------- ASCII 1 Keyboard 1 Movement Vi Keybinds 0 Fullscreen 2 Font 24/Proggy Map View 76x50 Tactical HUD 1 Map Filters NONE Filters NONE Steam 1 RUN: 020a85c3-e988-48a8-a3ad-ecefbdb691fc